bitfinex/quotes_BTCUSD_20220207
["timestamp","ask_amount","ask_price","bid_price","bid_amount"]
[1644227884191,0.62610301,42490.0,42487.0,0.04842354]
[1644227884494,0.62642939,42490.0,42482.0,0.0219146]
[1644227884692,0.62673082,42490.0,42484.0,0.02129237]
[1644227884893,0.62673082,42490.0,42481.0,0.00062794]
[1644227885341,0.62673082,42490.0,42481.0,0.23722116]
[1644227885541,0.62610301,42490.0,42479.0,0.3]
[1644227885843,0.00062733,42488.0,42481.0,0.00062743]
[1644227886441,0.00062733,42488.0,42482.0,0.25318722]
[1644227886642,0.00030143,42489.0,42482.0,0.25318722]
[1644227886944,0.00062733,42487.0,42486.0,0.04842354]
[1644227887842,0.00030143,42489.0,42486.0,0.04842354]
[1644227888045,0.00062732,42489.0,42486.0,0.04842354]
[1644227888444,0.00062732,42489.0,42485.0,0.01912628]
[1644227888641,0.00092875,42489.0,42485.0,0.01912628]
[1644227888843,0.00250521,42489.0,42485.0,0.01912628]
[1644227889090,0.00030143,42489.0,42482.0,0.04842354]
[1644227889286,0.00062737,42489.0,42482.0,0.04842354]
[1644227889487,0.0009288,42489.0,42482.0,0.04842354]
[1644227890288,0.00030143,42489.0,42482.0,0.04842354]
[1644227890488,0.00062738,42488.0,42482.0,0.04842354]
[1644227890689,0.00062738,42488.0,42481.0,0.30139648]
[1644227890889,0.00062738,42488.0,42485.0,0.04842354]
[1644227891491,0.00030143,42489.0,42485.0,0.04842354]
[1644227891790,0.00062737,42489.0,42485.0,0.04842354]
[1644227891988,0.0009288,42489.0,42485.0,0.04842354]
[1644227892591,0.00030143,42489.0,42485.0,0.04842354]
[1644227892842,0.00092879,42489.0,42485.0,0.04842354]
[1644227893843,0.00030143,42489.0,42485.0,0.04842354]
[1644227894043,0.00062736,42489.0,42485.0,0.04842354]
[1644227894244,0.00092879,42489.0,42485.0,0.04842354]
[1644227895045,0.00030143,42489.0,42488.0,0.04842354]
[1644227895244,0.00062736,42489.0,42488.0,0.04842354]
[1644227896249,0.00186944,42490.0,42488.0,0.04842354]
[1644227898695,0.00186944,42490.0,42489.0,0.21623297]
[1644227898895,0.00186944,42490.0,42489.0,0.30585997]
[1644227899390,0.00186944,42490.0,42489.0,0.59149997]
[1644227902645,0.00186944,42490.0,42489.0,0.63992351]
[1644227903544,0.00186944,42490.0,42489.0,0.375267]
[1644227904789,0.00186944,42490.0,42489.0,0.42369054]
[1644227905689,0.00186944,42490.0,42489.0,0.72208339]
[1644227907091,0.00186944,42490.0,42489.0,0.82208339]
[1644227908641,0.00186944,42490.0,42489.0,0.72208339]
[1644227909443,0.00186944,42490.0,42489.0,0.42369054]
[1644227910441,0.001,42491.0,42489.0,0.42369054]
[1644227910442,0.42566919,42498.0,42496.0,0.01351997]
[1644227910643,0.00184344,42495.0,42493.0,0.04842354]
[1644227911248,0.00184344,42495.0,42490.0,0.75]
[1644227911444,0.00184344,42495.0,42485.0,0.53334177]
[1644227911695,0.00184344,42495.0,42486.0,0.377967]
[1644227911892,0.00184344,42495.0,42486.0,0.327967]
[1644227911893,0.0034199,42495.0,42486.0,0.327967]
[1644227912096,0.0034199,42495.0,42485.0,0.04842354]
[1644227912097,0.00157646,42491.0,42485.0,0.04842354]
[1644227912693,0.00184344,42493.0,42486.0,0.23133177]
[1644227912694,0.00030319,42492.0,42486.0,0.23133177]
[1644227912894,0.00214663,42493.0,42488.0,0.04842354]
[1644227913093,0.00030319,42492.0,42488.0,0.04842354]
[1644227913294,0.00214663,42493.0,42488.0,0.04842354]
[1644227913494,0.00030319,42492.0,42488.0,0.04842354]
[1644227913697,0.00214663,42493.0,42488.0,0.04842354]
[1644227913895,0.00030319,42492.0,42488.0,0.04842354]
[1644227914097,0.00214663,42493.0,42488.0,0.04842354]
[1644227914301,0.00030319,42492.0,42488.0,0.04842354]
[1644227914495,0.00214663,42493.0,42488.0,0.04842354]
[1644227914695,0.00030319,42492.0,42488.0,0.04842354]
[1644227914895,0.00214663,42493.0,42488.0,0.04842354]
[1644227915095,0.00030319,42492.0,42486.0,0.00066748]
[1644227915349,0.00157646,42489.0,42486.0,0.00066748]
[1644227915546,0.00157646,42489.0,42483.0,0.02066909]
[1644227915746,0.00157646,42489.0,42486.0,0.00066748]
[1644227916750,0.00157646,42489.0,42478.0,0.14059683]
[1644227916953,0.3,42491.0,42485.0,0.00066748]
[1644227916954,0.00030319,42490.0,42485.0,0.00066748]
[1644227917152,0.00157646,42486.0,42485.0,0.00066748]
[1644227917747,0.20724691,42486.0,42485.0,0.00066748]
[1644227917948,0.22239676,42479.0,42478.0,0.01809683]
[1644227918147,0.29486772,42479.0,42478.0,0.01809683]
[1644227918351,0.34486772,42479.0,42478.0,0.01809683]
[1644227918546,0.34644418,42479.0,42478.0,0.01809683]
[1644227918746,0.34644418,42479.0,42469.0,0.4111459]
[1644227918947,0.00157646,42473.0,42469.0,0.01934491]
[1644227919197,0.00157646,42473.0,42472.0,0.00066706]
[1644227919796,0.28887208,42478.0,42472.0,0.00066706]
[1644227920198,0.28887208,42478.0,42469.0,0.27124691]
[1644227920401,0.28887208,42478.0,42473.0,0.00066705]
[1644227920600,0.00157646,42475.0,42473.0,0.00066705]
[1644227921499,0.00157646,42475.0,42470.0,0.00019901]
[1644227921700,0.00157646,42475.0,42472.0,0.00066706]
[1644227921902,0.00157646,42476.0,42472.0,0.00066706]
[1644227922701,0.00157646,42476.0,42470.0,0.00019901]
[1644227922943,0.28887208,42478.0,42472.0,0.00066706]
[1644227923945,0.28887208,42478.0,42470.0,0.00019901]
[1644227924149,0.28887208,42478.0,42473.0,0.00066705]
[1644227925148,0.08163404,42475.0,42470.0,0.00019901]
[1644227925349,0.13163404,42475.0,42469.0,0.00025793]
[1644227925549,0.13163404,42475.0,42469.0,5.892e-05]
[1644227925749,0.05,42475.0,42469.0,0.00025793]
[1644227925951,0.00157646,42477.0,42469.0,5.892e-05]
[1644227926252,0.00157646,42477.0,42469.0,0.00025793]
[1644227926449,0.00157646,42477.0,42466.0,0.00019901]
[1644227926694,0.00157646,42477.0,42465.0,0.2017676]
[1644227927397,0.21810043,42475.0,42466.0,0.23917487]
[1644227927695,0.48175726,42475.0,42466.0,0.23937388]
[1644227927895,0.53175726,42475.0,42466.0,0.23937388]
[1644227928094,0.5263173,42475.0,42466.0,0.44094247]
[1644227928294,0.5263173,42475.0,42466.0,0.23917487]
[1644227928494,0.5263173,42475.0,42466.0,0.23937388]
[1644227928896,0.5263173,42475.0,42468.0,0.00064063]
[1644227929198,0.30821687,42475.0,42468.0,0.00064063]
[1644227929396,0.05,42475.0,42470.0,0.04842354]
[1644227929796,0.0638458,42476.0,42470.0,0.04842354]
[1644227929999,0.1138458,42476.0,42470.0,0.04906415]
[1644227930197,0.05,42476.0,42470.0,0.04906415]
[1644227930451,0.2462389,42477.0,42470.0,0.04906415]
[1644227931047,0.2462389,42477.0,42470.0,0.04842354]
[1644227931249,0.2462389,42477.0,42471.0,0.00064061]
[1644227931450,0.06587274,42475.0,42471.0,0.00083962]
[1644227932348,0.05157646,42477.0,42471.0,0.00019901]
[1644227932556,0.01815773,42482.0,42474.0,0.04842354]
[1644227932750,0.0006404,42485.0,42479.0,0.04842354]
[1644227932951,0.01824798,42480.0,42479.0,0.04842354]
[1644227933151,0.01824798,42480.0,42479.0,0.04809354]
[1644227933451,0.28129338,42480.0,42473.0,0.25344386]
[1644227933850,0.00190646,42478.0,42473.0,0.0473]
[1644227934697,0.21184095,42475.0,42473.0,0.0473]
[1644227935101,0.26184095,42475.0,42472.0,0.04809354]
[1644227935298,0.26184095,42475.0,42472.0,0.04829255]
[1644227935499,0.24683543,42473.0,42472.0,0.04829255]
[1644227935699,0.24683543,42473.0,42472.0,0.04809354]
[1644227935900,0.29683543,42473.0,42472.0,0.04809354]
[1644227936100,0.29683543,42473.0,42470.0,0.00082697]
[1644227936299,0.29683543,42473.0,42470.0,0.00062796]
[1644227936498,0.29683543,42473.0,42470.0,0.00082697]
[1644227936900,0.37452465,42472.0,42470.0,0.00082697]
[1644227937102,0.37452465,42472.0,42465.0,0.00019901]
[1644227937103,0.3,42471.0,42465.0,0.00019901]
[1644227937304,0.3,42471.0,42464.0,0.00019901]
[1644227937305,0.00190646,42466.0,42464.0,0.00019901]
[1644227937500,0.00190646,42466.0,42463.0,0.02130847]
[1644227937702,0.00190646,42469.0,42463.0,0.02130847]
[1644227937946,0.07160558,42465.0,42464.0,0.45]
[1644227938548,0.07160558,42465.0,42463.0,0.02130847]
[1644227939148,0.12160558,42465.0,42463.0,0.02130847]
[1644227939347,0.05,42465.0,42463.0,0.02130847]
[1644227939747,0.35,42470.0,42463.0,0.02130847]
[1644227939947,0.35,42470.0,42463.0,0.02150748]
[1644227940148,0.57945785,42470.0,42463.0,0.02150748]
[1644227940350,0.0654804,42467.0,42463.0,0.02150748]
[1644227940549,0.05,42470.0,42464.0,0.35]
[1644227940749,0.26619601,42469.0,42464.0,0.35019901]
[1644227941819,0.06437161,42467.0,42464.0,0.35019901]
[1644227942018,0.06437161,42467.0,42464.0,0.35062881]
[1644227942321,0.06437161,42467.0,42464.0,0.00062881]
[1644227943118,0.06437161,42467.0,42462.0,0.00019901]
[1644227943318,0.06437161,42467.0,42463.0,0.00062882]
[1644227943719,0.26619601,42469.0,42463.0,0.00062882]
[1644227944320,0.26619601,42469.0,42462.0,0.00019901]
[1644227944521,0.26619601,42469.0,42464.0,0.00062882]
[1644227944920,0.08422506,42467.0,42464.0,0.00062882]
[1644227945348,0.13422506,42467.0,42464.0,0.00062882]
[1644227945551,0.13422506,42467.0,42462.0,0.00019901]
[1644227945749,0.13422506,42467.0,42463.0,0.00062883]
[1644227946750,0.13422506,42467.0,42462.0,0.00019901]
[1644227946950,0.03422506,42467.0,42463.0,0.00062883]
[1644227947850,0.03422506,42467.0,42462.0,0.00019901]
[1644227948054,0.26619601,42469.0,42463.0,0.00062883]
[1644227948250,0.31619601,42469.0,42463.0,0.00062883]
[1644227948450,0.3159126,42469.0,42463.0,0.00062883]
[1644227949104,0.3159126,42469.0,42462.0,0.00019901]
[1644227949299,0.3159126,42469.0,42464.0,0.00062882]
[1644227950098,0.04971659,42469.0,42464.0,0.00062882]
[1644227950299,0.04971659,42469.0,42462.0,0.00019901]
[1644227950500,0.27445191,42471.0,42464.0,0.00062882]
[1644227951099,0.25527893,42471.0,42464.0,0.00062882]
[1644227951499,0.25527893,42471.0,42462.0,0.00019901]
[1644227951699,0.25527893,42471.0,42465.0,0.00062881]
[1644227952099,0.02146107,42473.0,42465.0,0.00062881]
[1644227952301,0.02146107,42473.0,42469.0,0.05]
[1644227952849,0.75934085,42480.0,42469.0,0.05062877]
[1644227953054,0.02161973,42474.0,42470.0,0.21775864]
[1644227953357,0.02161973,42474.0,42473.0,0.05]
[1644227953554,0.02161973,42474.0,42473.0,0.0973]
[1644227953751,0.02161973,42474.0,42473.0,0.1473]
[1644227953952,0.02161973,42474.0,42473.0,0.475267]
[1644227954360,0.02161973,42474.0,42473.0,0.575267]
[1644227955653,0.02161973,42474.0,42473.0,0.86528166]
[1644227955856,0.02161973,42474.0,42473.0,0.81528166]
[1644227956254,0.02161973,42474.0,42473.0,0.81465964]
[1644227957009,0.57667518,42483.0,42473.0,0.81465964]
[1644227957212,0.57667518,42483.0,42473.0,0.48669264]
[1644227957510,0.1347471,42483.0,42480.0,0.04937798]
[1644227957714,0.0210471,42483.0,42480.0,0.04937798]
[1644227957909,0.0210471,42483.0,42481.0,0.0473]
[1644227958516,0.0210471,42483.0,42481.0,0.3270953]
[1644227958710,0.0210471,42483.0,42482.0,0.27702063]
[1644227958912,0.00062202,42488.0,42482.0,0.0473]
[1644227959109,0.0006286,42485.0,42482.0,0.0973]
[1644227959308,0.0006286,42485.0,42482.0,0.0473]
[1644227959910,0.00062202,42488.0,42482.0,0.0473]
[1644227960110,0.0006286,42486.0,42482.0,0.0473]
[1644227961155,0.00062202,42488.0,42482.0,0.0473]
[1644227961363,0.28539209,42484.0,42482.0,0.0473]
[1644227963557,0.19473941,42483.0,42473.0,0.11759271]
[1644227963761,0.19473941,42483.0,42473.0,0.16759271]
[1644227963762,0.22746707,42482.0,42473.0,0.16759271]
[1644227963959,0.22746707,42482.0,42473.0,0.02091473]
[1644227963960,0.06904853,42478.0,42473.0,0.02091473]
[1644227964206,0.28535603,42477.0,42473.0,0.02091473]
[1644227964410,0.00062202,42476.0,42473.0,0.02091473]
[1644227964802,0.00062202,42476.0,42469.0,0.00019901]
[1644227965003,0.00062202,42476.0,42471.0,0.00062875]
[1644227965804,0.00062202,42476.0,42471.0,0.00082776]
[1644227966004,0.00033861,42476.0,42470.0,0.00019901]
[1644227966205,0.00033861,42476.0,42471.0,0.00062875]
[1644227967003,0.00033861,42476.0,42471.0,0.00082776]
[1644227967203,0.00033861,42476.0,42471.0,0.00019901]
[1644227967403,0.00033861,42476.0,42471.0,0.00062875]
[1644227967613,0.28990812,42480.0,42475.0,0.04966139]
[1644227967853,0.02076355,42481.0,42479.0,0.04966139]
[1644227968753,0.09505549,42481.0,42479.0,0.04966139]
[1644227968954,0.07429194,42481.0,42479.0,0.04966139]
[1644227970553,0.26136633,42483.0,42479.0,0.04966139]
[1644227970954,0.46460244,42483.0,42479.0,0.04966139]
[1644227971802,0.06753354,42480.0,42479.0,0.04966139]
[1644227972002,0.26136633,42483.0,42479.0,0.04966139]
[1644227972402,0.26170494,42483.0,42479.0,0.04966139]
[1644227972604,0.53223088,42483.0,42472.0,0.00019901]
[1644227972803,0.53223088,42483.0,42471.0,0.14054554]
[1644227972804,0.25905517,42475.0,42471.0,0.14054554]
[1644227973004,0.25905517,42475.0,42472.0,0.00019901]
[1644227973204,0.27036623,42474.0,42471.0,0.01828118]
[1644227973403,0.26717573,42474.0,42471.0,0.01886646]
[1644227973605,0.08750872,42473.0,42471.0,0.01886646]
[1644227973803,0.61853254,42472.0,42471.0,0.01866745]
[1644227974404,0.61853254,42472.0,42471.0,0.01808217]
[1644227975003,0.26581576,42472.0,42470.0,0.00019901]
[1644227975204,0.08750872,42473.0,42469.0,0.00058529]
[1644227975648,0.08750872,42473.0,42467.0,0.00019901]
[1644227975848,0.08750872,42473.0,42469.0,0.0005853]
[1644227976449,0.52424854,42475.0,42469.0,0.0005853]
[1644227976852,0.3272652,42480.0,42474.0,0.04966139]
[1644227977050,0.0217661,42478.0,42474.0,0.04966139]
[1644227978949,0.23436534,42477.0,42474.0,0.04966139]
[1644227979999,0.23436534,42477.0,42472.0,0.00019901]
[1644227980199,0.23436534,42477.0,42471.0,0.00058675]
[1644227980400,0.23436534,42477.0,42469.0,0.00019901]
[1644227980605,0.00033861,42476.0,42471.0,0.00058659]
[1644227980800,0.23436534,42477.0,42471.0,0.00058659]
[1644227981201,0.26998318,42476.0,42471.0,0.00058659]
[1644227981601,0.27032179,42476.0,42469.0,0.00019901]
[1644227981802,0.27032179,42476.0,42471.0,0.00058659]
[1644227982850,0.27032179,42476.0,42469.0,0.00019901]
[1644227983051,0.27032179,42476.0,42471.0,0.00058659]
[1644227983452,0.07834845,42474.0,42471.0,0.00058659]
[1644227983850,0.07834845,42474.0,42473.0,0.04966139]
[1644227984052,0.07834845,42474.0,42468.0,0.04966139]
[1644227984351,0.07834845,42474.0,42473.0,0.04966139]
[1644227984554,0.07834845,42474.0,42470.0,0.00058661]
[1644227985151,0.07834845,42474.0,42469.0,0.00019901]
[1644227985352,0.07834845,42474.0,42470.0,0.00058661]
[1644227985752,0.29326792,42472.0,42470.0,0.00058661]
[1644227986351,0.29326792,42472.0,42469.0,0.00019901]
[1644227986605,0.29326792,42472.0,42469.0,0.00058662]
[1644227986800,0.29326792,42472.0,42469.0,0.00078563]
[1644227987402,0.22294417,42470.0,42469.0,0.00078563]
[1644227987601,0.22294417,42470.0,42468.0,0.04966139]
[1644227987803,0.27053049,42473.0,42468.0,0.05024801]
[1644227988003,0.07834845,42474.0,42468.0,0.05024801]
[1644227988202,0.26556019,42473.0,42468.0,0.05024801]
[1644227988803,0.26556019,42473.0,42468.0,0.04966139]
[1644227989002,0.23485528,42470.0,42468.0,0.05024801]
[1644227989204,0.23485528,42470.0,42468.0,0.00058662]
[1644227989409,0.26665543,42469.0,42468.0,0.00058662]
[1644227989607,0.23519389,42470.0,42468.0,0.00058662]
[1644227989809,0.35,42469.0,42468.0,0.00058662]
[1644227990010,0.35,42469.0,42457.0,0.04966139]
[1644227990011,0.75,42468.0,42455.0,0.20156859]
[1644227990215,0.75,42468.0,42462.0,0.0002075]
[1644227990216,0.0473,42467.0,42462.0,0.0002075]
[1644227990452,0.0473,42467.0,42454.0,0.21874517]
[1644227990453,0.01875429,42462.0,42454.0,0.21874517]
[1644227990653,0.35300383,42457.0,42454.0,0.21874517]
[1644227990855,0.40300383,42457.0,42452.0,0.0002075]
[1644227991055,0.40300383,42457.0,42451.0,0.0002075]
[1644227991254,0.40300383,42457.0,42451.0,0.04966139]
[1644227991255,0.31959372,42457.0,42451.0,0.04966139]
[1644227991457,0.31959372,42457.0,42452.0,0.32855377]
[1644227991653,0.31959372,42457.0,42452.0,0.00058677]
[1644227991854,0.31959372,42457.0,42452.0,0.00079427]
[1644227992457,0.31959372,42457.0,42452.0,0.0002075]
[1644227992754,0.31959372,42457.0,42452.0,0.00058677]
[1644227992954,0.31959372,42457.0,42452.0,0.00079427]
[1644227993153,0.06605429,42462.0,42452.0,0.00079427]
[1644227993455,0.01875429,42462.0,42452.0,0.00079427]
[1644227993755,0.01875429,42462.0,42455.0,0.00058675]
[1644227993955,0.01875429,42462.0,42457.0,0.04966139]
[1644227994402,0.01875429,42462.0,42456.0,0.0002075]
[1644227994599,0.01875429,42462.0,42455.0,0.00058675]
[1644227994600,0.01875429,42462.0,42458.0,0.21363545]
[1644227995002,0.30093168,42464.0,42458.0,0.21384295]
[1644227995200,0.35093168,42464.0,42458.0,0.21384295]
[1644227996003,0.28702977,42464.0,42458.0,0.21384295]
[1644227996204,0.28702977,42464.0,42459.0,0.00058615]
[1644227996404,0.28702977,42464.0,42459.0,0.00079365]
[1644227996602,0.23702977,42464.0,42459.0,0.00079365]
[1644227997206,0.23702977,42464.0,42459.0,0.0002075]
[1644227997406,0.23702977,42464.0,42459.0,0.00058615]
[1644227997610,0.23702977,42464.0,42459.0,0.00079365]
[1644227998448,0.23702977,42464.0,42459.0,0.0002075]
[1644227998648,0.23702977,42464.0,42459.0,0.0005862]
[1644227998848,0.23702977,42464.0,42459.0,0.0007937]
[1644227999250,0.23736838,42464.0,42459.0,0.0007937]
[1644227999549,0.23736838,42464.0,42459.0,0.0002075]
[1644227999749,0.23736838,42464.0,42459.0,0.0007937]
[1644227999952,0.00116261,42463.0,42460.0,0.04966139]
[1644228000351,0.00116261,42463.0,42460.0,0.04986889]
[1644228000753,0.14560944,42468.0,42461.0,0.55]
[1644228001153,0.12534298,42468.0,42461.0,0.5502075]
[1644228001608,0.21967962,42464.0,42461.0,0.0002075]
[1644228001800,0.21967962,42464.0,42460.0,0.0502075]
[1644228002000,0.21967962,42464.0,42461.0,0.0002075]
[1644228002201,0.21967962,42464.0,42460.0,0.00058619]
[1644228003202,0.21967962,42464.0,42459.0,0.0002075]
[1644228003402,0.01100738,42462.0,42460.0,0.00058619]
[1644228003604,0.21967962,42464.0,42460.0,0.00058619]
[1644228004403,0.21967962,42464.0,42459.0,0.0002075]
[1644228004404,0.270598,42463.0,42459.0,0.0002075]
[1644228004603,0.21967962,42464.0,42460.0,0.00058619]
[1644228005453,0.21967962,42464.0,42460.0,0.00079369]
[1644228005650,0.21967962,42464.0,42460.0,0.0002075]
[1644228005951,0.21967962,42464.0,42460.0,0.0005862]
[1644228006150,0.21967962,42464.0,42460.0,0.0007937]
[1644228006651,0.01072395,42462.0,42460.0,0.0007937]
[1644228006852,0.01072395,42462.0,42459.0,0.0005075]
[1644228007056,0.16142142,42468.0,42460.0,0.0505862]
[1644228007257,0.0213939,42469.0,42467.0,0.05]
[1644228007456,0.0213939,42469.0,42468.0,0.327967]
[1644228007654,0.16139602,42471.0,42467.0,0.0973]
[1644228007854,0.119,42479.0,42470.0,0.05]
[1644228008061,0.32385825,42478.0,42470.0,0.30568933]
[1644228008258,0.37385825,42478.0,42470.0,0.30568933]
[1644228008458,0.32385825,42478.0,42470.0,0.30568933]
[1644228008655,0.29706517,42480.0,42470.0,0.30568933]
[1644228008858,0.29706517,42480.0,42474.0,0.05]
[1644228009112,0.29706517,42480.0,42470.0,0.40568933]
[1644228009300,0.22644277,42480.0,42477.0,0.13801152]
[1644228009703,0.01072395,42478.0,42477.0,0.13801152]
[1644228018600,0.01072395,42478.0,42477.0,0.38115294]
[1644228020357,0.01072395,42478.0,42477.0,0.13801152]
[1644228021158,0.26658632,42478.0,42477.0,0.13801152]
[1644228021356,0.26630287,42478.0,42477.0,0.13801152]
[1644228021556,0.25586237,42478.0,42477.0,0.13801152]
[1644228021756,0.26630287,42478.0,42477.0,0.13801152]
[1644228021957,0.53098009,42478.0,42477.0,0.13801152]
[1644228022359,0.26630287,42478.0,42477.0,0.13801152]
[1644228023156,0.53217435,42478.0,42477.0,0.13801152]
[1644228023757,0.60984963,42478.0,42477.0,0.13801152]
[1644228024208,0.60783405,42478.0,42477.0,0.13801152]
[1644228025705,0.34397815,42478.0,42477.0,0.13801152]
[1644228025909,0.26630287,42478.0,42477.0,0.13801152]
[1644228030353,0.0104405,42478.0,42477.0,0.13801152]
[1644228032005,0.21046361,42481.0,42477.0,0.13801152]
[1644228032501,0.5,42484.0,42473.0,0.05]
[1644228032710,0.5,42484.0,42479.0,0.05]
[1644228033007,0.55,42484.0,42479.0,0.05]
[1644228034005,0.05,42484.0,42479.0,0.05]
[1644228034301,0.30268851,42485.0,42479.0,0.05]
[1644228034502,0.30210023,42485.0,42477.0,0.13801152]
[1644228034702,0.30210023,42485.0,42479.0,0.05]
[1644228035357,0.05,42485.0,42479.0,0.32940547]
[1644228035755,0.16140058,42486.0,42479.0,0.05]
[1644228035756,0.05,42486.0,42479.0,0.05]
[1644228036155,0.05,42486.0,42481.0,0.23745213]
[1644228036355,0.017,42486.0,42479.0,0.05]
[1644228036558,0.00030319,42488.0,42479.0,0.05]
[1644228036756,0.2553453,42489.0,42479.0,0.05]
[1644228036959,0.00030319,42488.0,42479.0,0.05]
[1644228037258,0.00030319,42489.0,42481.0,0.24544138]
[1644228037459,0.00030319,42488.0,42481.0,0.24544138]
[1644228037658,0.00030319,42489.0,42482.0,0.27987698]
[1644228037860,0.00030319,42490.0,42482.0,0.27987698]
[1644228038059,0.00030319,42489.0,42485.0,0.23400194]
[1644228038259,0.00064049,42488.0,42486.0,0.13801152]
[1644228039303,0.00030319,42491.0,42486.0,0.13801152]
[1644228039502,0.00064047,42489.0,42486.0,0.13801152]
[1644228040105,0.00064047,42489.0,42486.0,0.41253745]
[1644228040307,0.00064047,42489.0,42488.0,0.05]
[1644228040604,0.00030319,42491.0,42488.0,0.33686635]
[1644228040803,0.00064047,42490.0,42488.0,0.33686635]
[1644228041005,0.00064047,42490.0,42489.0,0.56653792]
[1644228041204,0.00018261,42490.0,42489.0,0.56653792]
[1644228041707,0.00030319,42492.0,42489.0,0.61653792]
[1644228041904,0.00184344,42493.0,42492.0,0.22238676]
[1644228042102,0.00184344,42493.0,42492.0,0.27238676]
[1644228043359,0.00184344,42493.0,42492.0,0.32238676]
[1644228043556,0.00184344,42493.0,42492.0,0.73836528]
[1644228044558,0.00184344,42493.0,42492.0,0.78701938]
[1644228044759,0.00184344,42493.0,42492.0,0.88701938]
[1644228044959,0.00184344,42493.0,42492.0,1.17251248]
[1644228045562,0.00184344,42493.0,42492.0,1.02251248]
[1644228046464,0.00184344,42493.0,42492.0,0.73701938]
[1644228047110,0.00184344,42493.0,42492.0,0.13801152]
[1644228048109,0.3021128,42493.0,42492.0,0.13801152]
[1644228048309,0.2304185,42493.0,42492.0,0.13801152]
[1644228049309,0.00184344,42493.0,42492.0,0.13801152]
[1644228050010,0.00184344,42493.0,42492.0,0.37801152]
[1644228061369,0.04914344,42493.0,42492.0,0.37801152]
[1644228061618,0.35458715,42493.0,42492.0,0.37801152]
[1644228061806,0.59682674,42493.0,42492.0,0.37801152]
[1644228062608,1.09682674,42493.0,42492.0,0.37801152]
[1644228062807,0.90458715,42493.0,42492.0,0.37801152]
[1644228063811,1.16562332,42493.0,42492.0,0.37801152]
[1644228064009,0.90458715,42493.0,42492.0,0.37801152]
[1644228064410,0.59545224,42493.0,42492.0,0.37801152]
[1644228064611,0.54545224,42493.0,42492.0,0.37801152]
[1644228065556,0.04545224,42493.0,42492.0,0.37801152]
[1644228065957,0.0013088,42493.0,42492.0,0.37801152]
[1644228079706,0.0013088,42493.0,42492.0,0.37779695]
[1644228079908,0.0013088,42493.0,42492.0,0.30900575]
[1644228080354,0.0013088,42493.0,42492.0,0.37779695]
[1644228084203,0.00070741,42493.0,42492.0,0.37779695]
[1644228087954,0.00070741,42493.0,42492.0,0.42779695]
[1644228089155,0.00093227,42495.0,42492.0,0.42779695]
[1644228089355,0.00062908,42495.0,42492.0,0.37779695]
[1644228089555,0.00062908,42495.0,42492.0,0.29]
[1644228089756,0.31519551,42496.0,42494.0,0.13779695]
[1644228089956,0.27117968,42495.0,42494.0,0.13779695]
[1644228091259,0.05,42496.0,42494.0,0.13779695]
[1644228091707,0.65657392,42497.0,42494.0,0.13779695]
[1644228092007,0.05162906,42497.0,42494.0,0.13779695]
[1644228092210,0.051,42497.0,42494.0,0.13779695]
[1644228092409,0.001,42497.0,42494.0,0.13779695]
[1644228093010,0.001,42497.0,42496.0,0.24418578]
[1644228093608,0.423,42498.0,42496.0,0.24418578]
[1644228094009,0.41977,42498.0,42496.0,0.24418578]
[1644228095010,0.41977,42498.0,42497.0,0.0687912]
[1644228095212,0.41977,42498.0,42497.0,0.13779695]
[1644228095456,0.41977,42498.0,42497.0,0.77740031]
[1644228096360,0.46977,42498.0,42497.0,0.77740031]
[1644228097857,0.46977,42498.0,42497.0,0.46576395]
[1644228098060,0.46977,42498.0,42497.0,0.74235193]
[1644228099311,0.41977,42498.0,42497.0,0.84235193]
[1644228100708,0.00240319,42500.0,42498.0,0.327967]
[1644228100909,0.00272892,42500.0,42499.0,0.05]
[1644228101311,0.00272892,42500.0,42499.0,0.1187912]
[1644228101510,0.00272892,42500.0,42499.0,0.18779695]
[1644228101709,0.0021,42500.0,42499.0,0.46352361]
[1644228102710,0.0021,42500.0,42499.0,0.18779695]
[1644228102956,0.0021,42500.0,42499.0,0.48396351]
[1644228103759,0.0021,42500.0,42499.0,0.81193051]
[1644228104062,0.0021,42500.0,42499.0,0.48396351]
[1644228105562,0.0021,42500.0,42499.0,0.81193051]
[1644228106461,0.0021,42500.0,42499.0,0.48396351]
[1644228107606,0.0021,42500.0,42499.0,0.81193051]
[1644228109311,0.0021,42500.0,42499.0,0.48396351]
[1644228109708,0.0021,42500.0,42499.0,0.81193051]
[1644228110355,0.0021,42500.0,42499.0,0.48396351]
[1644228111362,0.0021,42500.0,42499.0,0.81193051]
[1644228111962,0.0021,42500.0,42499.0,0.91193051]
[1644228113060,0.0021,42500.0,42499.0,0.58396351]
[1644228117607,0.0021,42500.0,42499.0,0.91193051]
[1644228117861,0.0021,42500.0,42499.0,0.58396351]
[1644228118663,0.0021,42500.0,42499.0,0.91193051]
[1644228118861,0.0021,42500.0,42499.0,0.58396351]
[1644228119262,0.0021,42500.0,42499.0,0.91193051]
[1644228120468,0.0021,42500.0,42499.0,0.61576395]
[1644228120964,0.0021,42500.0,42499.0,0.28779695]
[1644228121363,0.0021,42500.0,42499.0,0.18779695]
[1644228121618,0.0021,42500.0,42499.0,0.48779695]
[1644228121813,0.0021,42500.0,42499.0,0.33509695]
[1644228122015,0.00199568,42501.0,42500.0,0.75]
[1644228122217,0.00030455,42502.0,42501.0,1.027967]
[1644228122414,0.00019798,42502.0,42501.0,1.175267]
[1644228122613,0.00019798,42502.0,42501.0,1.31306395]
[1644228123313,0.00030455,42507.0,42501.0,1.07306395]
[1644228123515,0.37072928,42508.0,42501.0,1.07306395]
[1644228123516,0.00104672,42508.0,42507.0,0.75]
[1644228123718,0.02104695,42511.0,42508.0,0.3]
[1644228123915,0.02104695,42511.0,42510.0,0.05]
[1644228124118,0.00496464,42515.0,42511.0,0.75]
[1644228124324,0.002,42517.0,42514.0,1.54546164]
[1644228124519,0.003,42518.0,42514.0,1.54546164]
[1644228124520,0.002,42518.0,42517.0,0.39399995]
[1644228124722,0.002,42518.0,42517.0,0.44129995]
[1644228124917,0.002,42518.0,42517.0,0.54129995]
[1644228125120,0.002,42518.0,42517.0,0.375267]
[1644228125371,0.002,42518.0,42517.0,0.525267]
[1644228125973,0.002,42518.0,42517.0,0.71654739]
[1644228126174,0.002,42518.0,42517.0,0.66924739]
[1644228126373,0.002,42518.0,42517.0,0.327967]
[1644228126573,0.002,42518.0,42514.0,0.26541007]
[1644228126974,0.002,42518.0,42517.0,0.05]
[1644228127276,0.00222287,42518.0,42517.0,0.05]
[1644228127973,0.00222287,42518.0,42517.0,0.18779695]
[1644228128174,0.002,42518.0,42517.0,0.46576395]
[1644228128374,0.002,42518.0,42517.0,0.77672823]
[1644228129412,0.002,42518.0,42517.0,0.46576395]
[1644228129610,0.242,42518.0,42517.0,0.46576395]
[1644228129812,0.242,42518.0,42517.0,0.13779695]
[1644228130010,0.292,42518.0,42517.0,0.18779695]